[Event "Titled Tuesday Blitz March 28 Early 2023"]
[White "Lazavik, Denis"]
[Black "Shevtchenko, Olesya"]
[WhiteFideId "13515110"]
[BlackFideId "24131890"]
[WhiteElo "2560"]
[BlackElo "2003"]
[Result "1-0"]
[Round "01"]
[TimeControl "180+2"]
[Date "2023.03.28"]
[WhiteClock "0:00:30"]
[BlackClock "0:00:02"]

1. d4 {[%clk 0:02:31]}  Nf6 {[%clk 0:02:59]} 2. c4 {[%clk 0:02:32]}  e6 {[%clk 0:03:00]} 3. Nf3 {[%clk 0:02:32]}  d5 {[%clk 0:03:00]} 4. g3 {[%clk 0:02:33]}  Bb4+ {[%clk 0:03:00]} 5. Bd2 {[%clk 0:02:33]}  a5 {[%clk 0:03:01]} 6. Bg2 {[%clk 0:02:33]}  O-O {[%clk 0:03:00]} 7. Qc2 {[%clk 0:02:33]}  c5 {[%clk 0:03:00]} 8. cxd5 {[%clk 0:02:33]}  cxd4 {[%clk 0:03:00]} 9. Nxd4 {[%clk 0:02:33]}  Qb6 {[%clk 0:03:00]} 10. e3 {[%clk 0:02:34]}  exd5 {[%clk 0:03:01]} 11. O-O {[%clk 0:02:35]}  Nc6 {[%clk 0:03:01]} 12. Nxc6 {[%clk 0:02:31]}  bxc6 {[%clk 0:03:02]} 13. Rc1 {[%clk 0:02:31]}  Be6 {[%clk 0:03:03]} 14. Qxc6 {[%clk 0:02:30]}  Bxd2 {[%clk 0:03:03]} 15. Qxb6 {[%clk 0:02:29]}  Bxc1 {[%clk 0:03:04]} 16. Qd4 {[%clk 0:02:25]}  Rfb8 {[%clk 0:03:00]} 17. b3 {[%clk 0:02:22]}  Rb4 {[%clk 0:03:00]} 18. Qd1 {[%clk 0:02:21]}  Bb2 {[%clk 0:03:00]} 19. a3 {[%clk 0:02:17]}  Bxa1 {[%clk 0:03:01]} 20. axb4 {[%clk 0:02:18]}  axb4 {[%clk 0:03:01]} 21. Qd3 {[%clk 0:02:03]}  h5 {[%clk 0:02:56]} 22. h3 {[%clk 0:01:59]}  Rc8 {[%clk 0:02:55]} 23. Nd2 {[%clk 0:01:57]}  Rc1+ {[%clk 0:02:52]} 24. Kh2 {[%clk 0:01:57]}  Bc3 {[%clk 0:02:52]} 25. Nf3 {[%clk 0:01:43]}  Ne4 {[%clk 0:02:51]} 26. Qe2 {[%clk 0:01:37]}  Rb1 {[%clk 0:02:47]} 27. Nd4 {[%clk 0:01:35]}  Rb2 {[%clk 0:02:03]} 28. Qxh5 {[%clk 0:01:35]}  Bxd4 {[%clk 0:02:03]} 29. exd4 {[%clk 0:01:34]}  Nxf2 {[%clk 0:01:57]} 30. Kg1 {[%clk 0:01:32]}  g6 {[%clk 0:01:27]} 31. Qh4 {[%clk 0:01:31]}  Nd1 {[%clk 0:01:21]} 32. Bxd5 {[%clk 0:01:20]}  Bxd5 {[%clk 0:00:38]} 33. Qd8+ {[%clk 0:01:19]}  Kg7 {[%clk 0:00:37]} 34. Qxd5 {[%clk 0:01:19]}  Nc3 {[%clk 0:00:37]} 35. Qe5+ {[%clk 0:01:19]}  Kh7 {[%clk 0:00:33]} 36. d5 {[%clk 0:01:17]}  Rd2 {[%clk 0:00:25]} 37. d6 {[%clk 0:01:16]}  Rd1+ {[%clk 0:00:18]} 38. Kg2 {[%clk 0:01:12]}  Rd2+ {[%clk 0:00:15]} 39. Kf3 {[%clk 0:01:12]}  Rd3+ {[%clk 0:00:15]} 40. Kg4 {[%clk 0:01:12]}  Rd5 {[%clk 0:00:03]} 41. Qe7 {[%clk 0:01:11]}  Rd4+ {[%clk 0:00:02]} 42. Kf3 {[%clk 0:01:09]}  Rd3+ {[%clk 0:00:03]} 43. Kf2 {[%clk 0:01:01]}  Rd2+ {[%clk 0:00:03]} 44. Ke1 {[%clk 0:01:01]}  Rd1+ {[%clk 0:00:04]} 45. Kf2 {[%clk 0:01:00]}  Rd2+ {[%clk 0:00:04]} 46. Kf3 {[%clk 0:00:55]}  Rd3+ {[%clk 0:00:04]} 47. Kg4 {[%clk 0:00:28]}  Rd4+ {[%clk 0:00:04]} 48. Kg5 {[%clk 0:00:28]}  Rd5+ {[%clk 0:00:02]} 49. Kh4 {[%clk 0:00:27]}  Rd4+ {[%clk 0:00:01]} 50. g4 {[%clk 0:00:28]}  Kg7 {[%clk 0:00:01]} 51. d7 {[%clk 0:00:28]}  Ne4 {[%clk 0:00:01]} 52. d8=Q {[%clk 0:00:28]}  g5+ {[%clk 0:00:01]} 53. Qxg5+ {[%clk 0:00:28]}  Nxg5 {[%clk 0:00:01]} 54. Qxd4+ {[%clk 0:00:28]}  Kh6 {[%clk 0:00:01]} 55. Qf6+ {[%clk 0:00:28]}  Kh7 {[%clk 0:00:01]} 56. Kxg5 {[%clk 0:00:29]}  Kg8 {[%clk 0:00:01]} 57. Kh6 {[%clk 0:00:30]}  Kf8 {[%clk 0:00:02]} 58. Qd8# {[%clk 0:00:30]} 1-0


[Site "https://www.chess.com"]

[Event "Titled Tuesday Blitz March 28 Early 2023"]
[White "Ljukin, Sergei"]
[Black "Le, Tuan Minh"]
[WhiteFideId "14102200"]
[BlackFideId "12401153"]
[WhiteElo "2312"]
[BlackElo "2558"]
[Result "0-1"]
[Round "01"]
[TimeControl "180+2"]
[Date "2023.03.28"]
[WhiteClock "0:00:04"]
[BlackClock "0:00:27"]

1. e4 {[%clk 0:02:58]}  c5 {[%clk 0:02:56]} 2. Nf3 {[%clk 0:02:57]}  Nf6 {[%clk 0:02:54]} 3. Nc3 {[%clk 0:02:56]}  d5 {[%clk 0:02:52]} 4. exd5 {[%clk 0:02:57]}  Nxd5 {[%clk 0:02:53]} 5. Bb5+ {[%clk 0:02:57]}  Bd7 {[%clk 0:02:51]} 6. Ne5 {[%clk 0:02:29]}  Nf6 {[%clk 0:02:50]} 7. Nxd7 {[%clk 0:02:19]}  Nbxd7 {[%clk 0:02:50]} 8. d4 {[%clk 0:02:15]}  cxd4 {[%clk 0:02:47]} 9. Qxd4 {[%clk 0:02:14]}  a6 {[%clk 0:02:48]} 10. Bxd7+ {[%clk 0:02:14]}  Qxd7 {[%clk 0:02:31]} 11. Qxd7+ {[%clk 0:02:13]}  Kxd7 {[%clk 0:02:31]} 12. Bg5 {[%clk 0:02:05]}  e6 {[%clk 0:02:23]} 13. Bxf6 {[%clk 0:02:05]}  gxf6 {[%clk 0:02:23]} 14. O-O-O+ {[%clk 0:02:05]}  Kc6 {[%clk 0:02:23]} 15. Rd3 {[%clk 0:02:04]}  Be7 {[%clk 0:02:05]} 16. Rhd1 {[%clk 0:02:03]}  Rad8 {[%clk 0:01:59]} 17. Rxd8 {[%clk 0:02:02]}  Bxd8 {[%clk 0:01:57]} 18. Rd3 {[%clk 0:01:36]}  f5 {[%clk 0:01:54]} 19. Kd2 {[%clk 0:01:34]}  Bf6 {[%clk 0:01:47]} 20. b3 {[%clk 0:01:28]}  h5 {[%clk 0:01:45]} 21. Ne2 {[%clk 0:01:17]}  h4 {[%clk 0:01:36]} 22. c4 {[%clk 0:01:03]}  Be5 {[%clk 0:01:30]} 23. f4 {[%clk 0:00:54]}  Bf6 {[%clk 0:01:28]} 24. Ke3 {[%clk 0:00:53]}  Rg8 {[%clk 0:01:12]} 25. Kf3 {[%clk 0:00:52]}  b5 {[%clk 0:01:07]} 26. cxb5+ {[%clk 0:00:29]}  axb5 {[%clk 0:01:08]} 27. a4 {[%clk 0:00:29]}  bxa4 {[%clk 0:00:59]} 28. bxa4 {[%clk 0:00:29]}  Ra8 {[%clk 0:01:00]} 29. Ra3 {[%clk 0:00:29]}  Be7 {[%clk 0:00:58]} 30. Ra2 {[%clk 0:00:29]}  Rb8 {[%clk 0:00:57]} 31. Nd4+ {[%clk 0:00:23]}  Kd5 {[%clk 0:00:53]} 32. Nb5 {[%clk 0:00:20]}  Bb4 {[%clk 0:00:51]} 33. Rc2 {[%clk 0:00:16]}  f6 {[%clk 0:00:47]} 34. Rc7 {[%clk 0:00:15]}  e5 {[%clk 0:00:47]} 35. fxe5 {[%clk 0:00:13]}  fxe5 {[%clk 0:00:47]} 36. Rh7 {[%clk 0:00:12]}  e4+ {[%clk 0:00:37]} 37. Ke2 {[%clk 0:00:10]}  Rc8 {[%clk 0:00:36]} 38. Rc7 {[%clk 0:00:06]}  Rg8 {[%clk 0:00:35]} 39. Kf1 {[%clk 0:00:06]}  Ke5 {[%clk 0:00:30]} 40. Rf7 {[%clk 0:00:04]}  Rd8 {[%clk 0:00:27]} 0-1


[Site "https://www.chess.com"]

[Event "Titled Tuesday Blitz March 28 Early 2023"]
[White "Anton Guijarro, David"]
[Black "Petukhov, Dmitry"]
[WhiteFideId "2285525"]
[BlackFideId "4142748"]
[WhiteElo "2618"]
[BlackElo "2311"]
[Result "1-0"]
[Round "01"]
[TimeControl "180+2"]
[Date "2023.03.28"]
[WhiteClock "0:00:29"]
[BlackClock "0:00:27"]

1. e4 {[%clk 0:02:59]}  c5 {[%clk 0:02:57]} 2. Nc3 {[%clk 0:02:59]}  Nc6 {[%clk 0:02:57]} 3. Nf3 {[%clk 0:02:55]}  d6 {[%clk 0:02:51]} 4. d4 {[%clk 0:02:51]}  cxd4 {[%clk 0:02:52]} 5. Nxd4 {[%clk 0:02:52]}  Nf6 {[%clk 0:02:53]} 6. h3 {[%clk 0:02:47]}  Bd7 {[%clk 0:02:51]} 7. Be3 {[%clk 0:02:44]}  Rc8 {[%clk 0:02:49]} 8. Qd2 {[%clk 0:02:39]}  Nxd4 {[%clk 0:02:48]} 9. Bxd4 {[%clk 0:02:39]}  Qa5 {[%clk 0:02:48]} 10. Bd3 {[%clk 0:02:33]}  e6 {[%clk 0:02:39]} 11. O-O {[%clk 0:02:22]}  Be7 {[%clk 0:02:37]} 12. a3 {[%clk 0:02:19]}  a6 {[%clk 0:02:36]} 13. Rad1 {[%clk 0:02:15]}  Qc7 {[%clk 0:02:22]} 14. Qe3 {[%clk 0:02:08]}  Bc6 {[%clk 0:02:19]} 15. e5 {[%clk 0:01:53]}  Nd5 {[%clk 0:02:10]} 16. Nxd5 {[%clk 0:01:31]}  Bxd5 {[%clk 0:02:10]} 17. Qg3 {[%clk 0:01:32]}  dxe5 {[%clk 0:01:46]} 18. Bxe5 {[%clk 0:01:27]}  Qc6 {[%clk 0:01:46]} 19. Qxg7 {[%clk 0:01:05]}  Rf8 {[%clk 0:01:39]} 20. c4 {[%clk 0:00:57]}  Be4 {[%clk 0:01:31]} 21. Rfe1 {[%clk 0:00:51]}  Bxd3 {[%clk 0:01:20]} 22. Rxd3 {[%clk 0:00:52]}  Rd8 {[%clk 0:01:13]} 23. Rxd8+ {[%clk 0:00:52]}  Kxd8 {[%clk 0:01:14]} 24. b3 {[%clk 0:00:41]}  Kc8 {[%clk 0:01:13]} 25. Qxh7 {[%clk 0:00:41]}  Bxa3 {[%clk 0:01:10]} 26. Qe4 {[%clk 0:00:40]}  Qd7 {[%clk 0:01:01]} 27. Qf3 {[%clk 0:00:37]}  Rd8 {[%clk 0:01:00]} 28. g3 {[%clk 0:00:35]}  Qd2 {[%clk 0:01:00]} 29. Re2 {[%clk 0:00:31]}  Qd1+ {[%clk 0:00:56]} 30. Kg2 {[%clk 0:00:31]}  Rd3 {[%clk 0:00:47]} 31. Qxf7 {[%clk 0:00:28]}  Rd7 {[%clk 0:00:30]} 32. Qe8+ {[%clk 0:00:29]}  Rd8 {[%clk 0:00:30]} 33. Qxe6+ {[%clk 0:00:29]}  Rd7 {[%clk 0:00:31]} 34. Bf4 {[%clk 0:00:30]}  Be7 {[%clk 0:00:27]} 35. Rd2 {[%clk 0:00:29]} 1-0


[Site "https://www.chess.com"]

[Event "Titled Tuesday Blitz March 28 Early 2023"]
[White "Arias, Juan Cruz"]
[Black "Paravyan, David"]
[WhiteFideId "118540"]
[BlackFideId "4194985"]
[WhiteElo "2243"]
[BlackElo "2577"]
[Result "0-1"]
[Round "01"]
[TimeControl "180+2"]
[Date "2023.03.28"]
[WhiteClock "0:00:18"]
[BlackClock "0:00:41"]

1. d4 {[%clk 0:02:59]}  Nf6 {[%clk 0:02:59]} 2. Nf3 {[%clk 0:02:59]}  g6 {[%clk 0:02:59]} 3. e3 {[%clk 0:02:59]}  Bg7 {[%clk 0:02:59]} 4. Be2 {[%clk 0:02:59]}  O-O {[%clk 0:02:59]} 5. O-O {[%clk 0:02:59]}  d6 {[%clk 0:02:58]} 6. b3 {[%clk 0:02:58]}  e5 {[%clk 0:02:55]} 7. dxe5 {[%clk 0:02:57]}  dxe5 {[%clk 0:02:56]} 8. Bb2 {[%clk 0:02:37]}  e4 {[%clk 0:02:52]} 9. Qxd8 {[%clk 0:02:34]}  Rxd8 {[%clk 0:02:51]} 10. Nfd2 {[%clk 0:02:33]}  Nc6 {[%clk 0:02:45]} 11. a3 {[%clk 0:02:28]}  Bf5 {[%clk 0:02:39]} 12. h3 {[%clk 0:02:00]}  h5 {[%clk 0:02:38]} 13. Re1 {[%clk 0:01:40]}  a6 {[%clk 0:02:31]} 14. Nf1 {[%clk 0:01:37]}  h4 {[%clk 0:02:31]} 15. Nbd2 {[%clk 0:01:32]}  Nd5 {[%clk 0:02:30]} 16. Bxg7 {[%clk 0:01:27]}  Kxg7 {[%clk 0:02:31]} 17. Nb1 {[%clk 0:01:23]}  Ne5 {[%clk 0:02:25]} 18. Nfd2 {[%clk 0:01:10]}  Rd7 {[%clk 0:02:19]} 19. Nc4 {[%clk 0:01:09]}  Nxc4 {[%clk 0:02:18]} 20. Bxc4 {[%clk 0:01:10]}  Nb6 {[%clk 0:02:13]} 21. Be2 {[%clk 0:01:10]}  Be6 {[%clk 0:02:07]} 22. Nc3 {[%clk 0:01:09]}  f5 {[%clk 0:02:07]} 23. Rad1 {[%clk 0:01:09]}  Rad8 {[%clk 0:02:06]} 24. Rxd7+ {[%clk 0:01:09]}  Rxd7 {[%clk 0:02:06]} 25. Rd1 {[%clk 0:01:10]}  Rxd1+ {[%clk 0:02:07]} 26. Bxd1 {[%clk 0:01:08]}  Kf6 {[%clk 0:02:06]} 27. g3 {[%clk 0:01:04]}  g5 {[%clk 0:01:48]} 28. Ne2 {[%clk 0:01:02]}  Nd5 {[%clk 0:01:37]} 29. gxh4 {[%clk 0:00:56]}  gxh4 {[%clk 0:01:38]} 30. Nf4 {[%clk 0:00:40]}  Bf7 {[%clk 0:01:12]} 31. Kf1 {[%clk 0:00:34]}  Ke5 {[%clk 0:01:11]} 32. Ng2 {[%clk 0:00:31]}  f4 {[%clk 0:00:52]} 33. exf4+ {[%clk 0:00:23]}  Nxf4 {[%clk 0:00:53]} 34. Nxh4 {[%clk 0:00:21]}  Nxh3 {[%clk 0:00:53]} 35. Ng2 {[%clk 0:00:22]}  Nf4 {[%clk 0:00:47]} 36. Ne3 {[%clk 0:00:21]}  Kd4 {[%clk 0:00:45]} 37. Ke1 {[%clk 0:00:20]}  Kc3 {[%clk 0:00:43]} 38. a4 {[%clk 0:00:20]}  Be6 {[%clk 0:00:41]} 39. Nf1 {[%clk 0:00:19]}  Ng2+ {[%clk 0:00:40]} 40. Ke2 {[%clk 0:00:19]}  Bg4+ {[%clk 0:00:41]} 41. f3 {[%clk 0:00:18]}  Bxf3+ {[%clk 0:00:41]} 0-1


[Site "https://www.chess.com"]

[Event "Titled Tuesday Blitz March 28 Early 2023"]
[White "Martinez Alcantara, Jose Eduardo"]
[Black "Oganisian, Roman"]
[WhiteFideId "3805662"]
[BlackFideId "4153006"]
[WhiteElo "2712"]
[BlackElo "2204"]
[Result "1/2-1/2"]
[Round "01"]
[TimeControl "180+2"]
[Date "2023.03.28"]
[WhiteClock "0:00:56"]
[BlackClock "0:00:08"]

1. e4 {[%clk 0:03:00]}  e6 {[%clk 0:02:55]} 2. d4 {[%clk 0:02:59]}  d5 {[%clk 0:02:54]} 3. Nd2 {[%clk 0:03:00]}  Nf6 {[%clk 0:02:51]} 4. e5 {[%clk 0:02:48]}  Ng8 {[%clk 0:02:40]} 5. f4 {[%clk 0:02:48]}  c5 {[%clk 0:02:40]} 6. c3 {[%clk 0:02:48]}  Nc6 {[%clk 0:02:40]} 7. Ndf3 {[%clk 0:02:48]}  Qa5 {[%clk 0:02:38]} 8. Kf2 {[%clk 0:02:43]}  Qb6 {[%clk 0:02:25]} 9. Ne2 {[%clk 0:02:41]}  Nh6 {[%clk 0:02:24]} 10. h3 {[%clk 0:02:31]}  f6 {[%clk 0:02:16]} 11. g4 {[%clk 0:02:28]}  fxe5 {[%clk 0:01:50]} 12. fxe5 {[%clk 0:02:26]}  Be7 {[%clk 0:01:46]} 13. Kg3 {[%clk 0:02:24]}  O-O {[%clk 0:01:41]} 14. Bg2 {[%clk 0:02:23]}  Bd7 {[%clk 0:01:34]} 15. Rf1 {[%clk 0:02:22]}  Be8 {[%clk 0:01:30]} 16. Nf4 {[%clk 0:02:17]}  Rxf4 {[%clk 0:01:20]} 17. Bxf4 {[%clk 0:02:15]}  Qxb2 {[%clk 0:01:19]} 18. Qc1 {[%clk 0:02:14]}  Qb6 {[%clk 0:00:47]} 19. Rd1 {[%clk 0:02:12]}  Bg6 {[%clk 0:00:41]} 20. Bg5 {[%clk 0:02:08]}  Rf8 {[%clk 0:00:28]} 21. Bxe7 {[%clk 0:02:07]}  Nxe7 {[%clk 0:00:29]} 22. a4 {[%clk 0:02:02]}  Be4 {[%clk 0:00:20]} 23. a5 {[%clk 0:01:57]}  Qc7 {[%clk 0:00:20]} 24. Rf1 {[%clk 0:01:54]}  Ng6 {[%clk 0:00:19]} 25. Ng5 {[%clk 0:01:41]}  Rxf1 {[%clk 0:00:13]} 26. Bxf1 {[%clk 0:01:34]}  Nf7 {[%clk 0:00:09]} 27. Nxf7 {[%clk 0:01:29]}  Qxf7 {[%clk 0:00:09]} 28. Qe3 {[%clk 0:01:26]}  Qe7 {[%clk 0:00:09]} 29. Kh2 {[%clk 0:01:20]}  Nh4 {[%clk 0:00:08]} 30. Be2 {[%clk 0:01:19]}  cxd4 {[%clk 0:00:05]} 31. cxd4 {[%clk 0:01:20]}  Ng2 {[%clk 0:00:03]} 32. Qf2 {[%clk 0:01:19]}  h5 {[%clk 0:00:03]} 33. gxh5 {[%clk 0:01:18]}  Qg5 {[%clk 0:00:02]} 34. Rg1 {[%clk 0:01:14]}  Qf4+ {[%clk 0:00:01]} 35. Qxf4 {[%clk 0:01:13]}  Nxf4 {[%clk 0:00:02]} 36. Bf1 {[%clk 0:01:13]}  Nxh5 {[%clk 0:00:02]} 37. Rg5 {[%clk 0:01:12]}  g6 {[%clk 0:00:01]} 38. Rg4 {[%clk 0:01:12]}  Bf5 {[%clk 0:00:01]} 39. Rg2 {[%clk 0:01:10]}  Ng7 {[%clk 0:00:02]} 40. Rb2 {[%clk 0:01:09]}  b6 {[%clk 0:00:02]} 41. Rxb6 {[%clk 0:01:05]}  axb6 {[%clk 0:00:03]} 42. a6 {[%clk 0:01:04]}  Ne8 {[%clk 0:00:01]} 43. a7 {[%clk 0:01:05]}  Nc7 {[%clk 0:00:02]} 44. Bb5 {[%clk 0:01:04]}  Bc2 {[%clk 0:00:01]} 45. Bc6 {[%clk 0:01:05]}  Bb3 {[%clk 0:00:01]} 46. Kg3 {[%clk 0:01:05]}  Bc4 {[%clk 0:00:01]} 47. Kf2 {[%clk 0:01:06]}  Ba6 {[%clk 0:00:01]} 48. Ke3 {[%clk 0:01:05]}  Kf7 {[%clk 0:00:01]} 49. Kf4 {[%clk 0:01:05]}  Kg7 {[%clk 0:00:01]} 50. Ke3 {[%clk 0:01:00]}  b5 {[%clk 0:00:01]} 51. Kd2 {[%clk 0:00:59]}  b4 {[%clk 0:00:02]} 52. Kc2 {[%clk 0:01:00]}  Bc4 {[%clk 0:00:02]} 53. Bd7 {[%clk 0:01:00]}  Kf7 {[%clk 0:00:01]} 54. Bc6 {[%clk 0:01:00]}  Ke7 {[%clk 0:00:02]} 55. Kb2 {[%clk 0:01:01]}  Kd8 {[%clk 0:00:01]} 56. Kc2 {[%clk 0:01:00]}  Kc8 {[%clk 0:00:02]} 57. Be8 {[%clk 0:00:58]}  b3+ {[%clk 0:00:02]} 58. Kc3 {[%clk 0:00:59]}  g5 {[%clk 0:00:03]} 59. Bc6 {[%clk 0:00:58]}  Ba6 {[%clk 0:00:02]} 60. Kxb3 {[%clk 0:00:53]}  Bb7 {[%clk 0:00:03]} 61. Ba4 {[%clk 0:00:53]}  Na6 {[%clk 0:00:02]} 62. Bb5 {[%clk 0:00:51]}  Nc7 {[%clk 0:00:03]} 63. Ba4 {[%clk 0:00:51]}  Na8 {[%clk 0:00:03]} 64. Kb4 {[%clk 0:00:51]}  Kc7 {[%clk 0:00:04]} 65. Kc5 {[%clk 0:00:51]}  Bc8 {[%clk 0:00:05]} 66. Be8 {[%clk 0:00:52]}  Kb7 {[%clk 0:00:05]} 67. Bc6+ {[%clk 0:00:52]}  Kxa7 {[%clk 0:00:04]} 68. Kd6 {[%clk 0:00:53]}  Kb8 {[%clk 0:00:03]} 69. Be8 {[%clk 0:00:49]}  Nc7 {[%clk 0:00:02]} 70. Bf7 {[%clk 0:00:49]}  Nb5+ {[%clk 0:00:02]} 71. Kc5 {[%clk 0:00:50]}  Nc7 {[%clk 0:00:02]} 72. Kd6 {[%clk 0:00:50]}  Nb5+ {[%clk 0:00:03]} 73. Kc5 {[%clk 0:00:50]}  Nc3 {[%clk 0:00:03]} 74. Kd6 {[%clk 0:00:49]}  Ne4+ {[%clk 0:00:04]} 75. Ke7 {[%clk 0:00:49]}  Kc7 {[%clk 0:00:05]} 76. Bxe6 {[%clk 0:00:49]}  Bxe6 {[%clk 0:00:05]} 77. Kxe6 {[%clk 0:00:50]}  Kc6 {[%clk 0:00:04]} 78. Kf7 {[%clk 0:00:47]}  Nf2 {[%clk 0:00:04]} 79. e6 {[%clk 0:00:47]}  Ne4 {[%clk 0:00:03]} 80. e7 {[%clk 0:00:47]}  Nd6+ {[%clk 0:00:04]} 81. Ke6 {[%clk 0:00:46]}  Kc7 {[%clk 0:00:03]} 82. Kxd5 {[%clk 0:00:42]}  Kd7 {[%clk 0:00:04]} 83. e8=Q+ {[%clk 0:00:42]}  Kxe8 {[%clk 0:00:04]} 84. Ke5 {[%clk 0:00:43]}  Nf7+ {[%clk 0:00:03]} 85. Kf6 {[%clk 0:00:43]}  Kf8 {[%clk 0:00:03]} 86. Ke6 {[%clk 0:00:44]}  Nh6 {[%clk 0:00:01]} 87. Kf6 {[%clk 0:00:44]}  g4 {[%clk 0:00:01]} 88. hxg4 {[%clk 0:00:44]}  Nxg4+ {[%clk 0:00:02]} 89. Kf5 {[%clk 0:00:45]}  Ne3+ {[%clk 0:00:02]} 90. Ke4 {[%clk 0:00:46]}  Nc4 {[%clk 0:00:02]} 91. Kd5 {[%clk 0:00:47]}  Nb6+ {[%clk 0:00:03]} 92. Ke6 {[%clk 0:00:48]}  Nc8 {[%clk 0:00:03]} 93. Kd7 {[%clk 0:00:48]}  Ne7 {[%clk 0:00:03]} 94. Ke6 {[%clk 0:00:48]}  Ke8 {[%clk 0:00:03]} 95. Kd6 {[%clk 0:00:49]}  Kd8 {[%clk 0:00:04]} 96. Ke5 {[%clk 0:00:50]}  Nc8 {[%clk 0:00:05]} 97. Kd5 {[%clk 0:00:50]}  Ne7+ {[%clk 0:00:05]} 98. Kd6 {[%clk 0:00:50]}  Nc8+ {[%clk 0:00:06]} 99. Ke5 {[%clk 0:00:51]}  Ne7 {[%clk 0:00:07]} 100. Ke6 {[%clk 0:00:52]}  Nc8 {[%clk 0:00:08]} 101. d5 {[%clk 0:00:53]}  Ne7 {[%clk 0:00:08]} 102. d6 {[%clk 0:00:54]}  Nc6 {[%clk 0:00:08]} 103. d7 {[%clk 0:00:55]}  Nb8 {[%clk 0:00:08]} 104. Kd6 {[%clk 0:00:56]}  Nxd7 {[%clk 0:00:08]} 1/2-1/2


[Site "https://www.chess.com"]

[Event "Titled Tuesday Blitz March 28 Early 2023"]
[White "Alinasab, Mobina"]
[Black "Daneshvar, Bardiya"]
[WhiteFideId "12528897"]
[BlackFideId "12576468"]
[WhiteElo "2141"]
[BlackElo "2468"]
[Result "0-1"]
[Round "01"]
[TimeControl "180+2"]
[Date "2023.03.28"]
[WhiteClock "0:00:03"]
[BlackClock "0:00:37"]

1. Nf3 {[%clk 0:03:00]}  d5 {[%clk 0:02:58]} 2. g3 {[%clk 0:03:00]}  Nd7 {[%clk 0:02:58]} 3. d4 {[%clk 0:03:00]}  Nb6 {[%clk 0:02:58]} 4. Bg2 {[%clk 0:02:59]}  Bf5 {[%clk 0:02:59]} 5. O-O {[%clk 0:03:00]}  e6 {[%clk 0:02:59]} 6. b3 {[%clk 0:03:00]}  Nf6 {[%clk 0:02:56]} 7. Bb2 {[%clk 0:03:01]}  h6 {[%clk 0:02:56]} 8. Ne5 {[%clk 0:03:00]}  c6 {[%clk 0:02:56]} 9. c4 {[%clk 0:03:00]}  Be7 {[%clk 0:02:55]} 10. Nc3 {[%clk 0:03:00]}  O-O {[%clk 0:02:56]} 11. Rc1 {[%clk 0:02:59]}  Bh7 {[%clk 0:02:55]} 12. Re1 {[%clk 0:02:59]}  a5 {[%clk 0:02:55]} 13. Qd2 {[%clk 0:02:45]}  dxc4 {[%clk 0:02:30]} 14. bxc4 {[%clk 0:02:43]}  Nfd7 {[%clk 0:02:29]} 15. Ne4 {[%clk 0:02:03]}  Nxe5 {[%clk 0:02:21]} 16. dxe5 {[%clk 0:02:00]}  Qxd2 {[%clk 0:02:06]} 17. Nxd2 {[%clk 0:01:59]}  Na4 {[%clk 0:01:59]} 18. Bd4 {[%clk 0:01:26]}  Ba3 {[%clk 0:01:41]} 19. Ra1 {[%clk 0:01:25]}  Bb4 {[%clk 0:01:41]} 20. Red1 {[%clk 0:00:48]}  Nc3 {[%clk 0:01:38]} 21. Re1 {[%clk 0:00:41]}  Rad8 {[%clk 0:01:18]} 22. Be3 {[%clk 0:00:39]}  Na4 {[%clk 0:01:06]} 23. Nb3 {[%clk 0:00:12]}  Bxe1 {[%clk 0:01:03]} 24. Rxe1 {[%clk 0:00:13]}  Rd7 {[%clk 0:01:00]} 25. Nxa5 {[%clk 0:00:10]}  Ra8 {[%clk 0:00:55]} 26. Nb3 {[%clk 0:00:10]}  Bc2 {[%clk 0:00:51]} 27. Bf3 {[%clk 0:00:06]}  Rd1 {[%clk 0:00:48]} 28. Rxd1 {[%clk 0:00:05]}  Bxd1 {[%clk 0:00:49]} 29. Kg2 {[%clk 0:00:05]}  Nb2 {[%clk 0:00:41]} 30. Nc5 {[%clk 0:00:01]}  Nxc4 {[%clk 0:00:40]} 31. Nxb7 {[%clk 0:00:02]}  Nxe3+ {[%clk 0:00:39]} 32. fxe3 {[%clk 0:00:03]}  Rxa2 {[%clk 0:00:40]} 33. Kf2 {[%clk 0:00:03]}  Rc2 {[%clk 0:00:37]} 0-1


[Site "https://www.chess.com"]

[Event "Titled Tuesday Blitz March 28 Early 2023"]
[White "koncheto"]
[Black "Demchenko, Anton"]
[BlackFideId "4160258"]
[WhiteElo "2513"]
[BlackElo "2545"]
[Result "0-1"]
[Round "01"]
[TimeControl "180+2"]
[Date "2023.03.28"]
[WhiteClock "0:00:03"]
[BlackClock "0:00:29"]

1. e4 {[%clk 0:02:59]}  e5 {[%clk 0:02:57]} 2. Nf3 {[%clk 0:02:59]}  Nc6 {[%clk 0:02:57]} 3. Bc4 {[%clk 0:03:00]}  Nf6 {[%clk 0:02:57]} 4. d3 {[%clk 0:03:00]}  h6 {[%clk 0:02:55]} 5. c3 {[%clk 0:02:58]}  d6 {[%clk 0:02:56]} 6. Nbd2 {[%clk 0:02:53]}  g6 {[%clk 0:02:55]} 7. O-O {[%clk 0:02:53]}  Bg7 {[%clk 0:02:56]} 8. Re1 {[%clk 0:02:53]}  O-O {[%clk 0:02:56]} 9. Nf1 {[%clk 0:02:53]}  Kh8 {[%clk 0:02:52]} 10. Ng3 {[%clk 0:02:53]}  Nh7 {[%clk 0:02:51]} 11. h3 {[%clk 0:02:21]}  Qe8 {[%clk 0:02:51]} 12. Nh2 {[%clk 0:02:09]}  f5 {[%clk 0:02:38]} 13. exf5 {[%clk 0:02:07]}  gxf5 {[%clk 0:02:37]} 14. f4 {[%clk 0:01:54]}  Nf6 {[%clk 0:02:22]} 15. fxe5 {[%clk 0:01:36]}  Nxe5 {[%clk 0:02:16]} 16. d4 {[%clk 0:01:25]}  Qg6 {[%clk 0:02:10]} 17. dxe5 {[%clk 0:01:20]}  dxe5 {[%clk 0:02:11]} 18. Qf3 {[%clk 0:01:10]}  Bd7 {[%clk 0:02:04]} 19. Nhf1 {[%clk 0:00:59]}  Rae8 {[%clk 0:02:00]} 20. Qxb7 {[%clk 0:00:55]}  f4 {[%clk 0:01:55]} 21. Ne4 {[%clk 0:00:51]}  Rb8 {[%clk 0:01:25]} 22. Nxf6 {[%clk 0:00:24]}  Rxb7 {[%clk 0:01:17]} 23. Nxd7 {[%clk 0:00:24]}  Re8 {[%clk 0:01:18]} 24. Nc5 {[%clk 0:00:23]}  Qc6 {[%clk 0:01:02]} 25. Nxb7 {[%clk 0:00:17]}  Qxc4 {[%clk 0:01:02]} 26. Nd2 {[%clk 0:00:13]}  Qb5 {[%clk 0:00:59]} 27. Nf3 {[%clk 0:00:10]}  Qxb7 {[%clk 0:00:52]} 28. Bxf4 {[%clk 0:00:10]}  e4 {[%clk 0:00:53]} 29. Re2 {[%clk 0:00:04]}  Rf8 {[%clk 0:00:53]} 30. Be5 {[%clk 0:00:01]}  exf3 {[%clk 0:00:52]} 31. Bxg7+ {[%clk 0:00:01]}  Kxg7 {[%clk 0:00:53]} 32. Rf2 {[%clk 0:00:02]}  fxg2 {[%clk 0:00:49]} 33. Rxg2+ {[%clk 0:00:02]}  Kh7 {[%clk 0:00:50]} 34. Re1 {[%clk 0:00:03]}  Rg8 {[%clk 0:00:43]} 35. Rxg8 {[%clk 0:00:03]}  Kxg8 {[%clk 0:00:43]} 36. Re8+ {[%clk 0:00:03]}  Kf7 {[%clk 0:00:43]} 37. Re2 {[%clk 0:00:04]}  Qa6 {[%clk 0:00:42]} 38. Rf2+ {[%clk 0:00:04]}  Ke7 {[%clk 0:00:43]} 39. a3 {[%clk 0:00:05]}  Qd3 {[%clk 0:00:42]} 40. Kg2 {[%clk 0:00:05]}  h5 {[%clk 0:00:41]} 41. Rf3 {[%clk 0:00:06]}  Qc2+ {[%clk 0:00:40]} 42. Rf2 {[%clk 0:00:06]}  Qe4+ {[%clk 0:00:40]} 43. Rf3 {[%clk 0:00:07]}  h4 {[%clk 0:00:40]} 44. b4 {[%clk 0:00:06]}  Kd6 {[%clk 0:00:37]} 45. Kf2 {[%clk 0:00:06]}  Kd5 {[%clk 0:00:34]} 46. Re3 {[%clk 0:00:07]}  Qc2+ {[%clk 0:00:33]} 47. Kf3 {[%clk 0:00:07]}  Qf5+ {[%clk 0:00:31]} 48. Ke2 {[%clk 0:00:07]}  Kc4 {[%clk 0:00:31]} 49. Kd2 {[%clk 0:00:05]}  Qd5+ {[%clk 0:00:30]} 50. Ke2 {[%clk 0:00:05]}  Qg2+ {[%clk 0:00:31]} 51. Kd1 {[%clk 0:00:05]}  Qf2 {[%clk 0:00:30]} 52. Re4+ {[%clk 0:00:03]}  Kxc3 {[%clk 0:00:29]} 0-1


[Site "https://www.chess.com"]